fUSD/lending_fUSD_20260429
["ID","MTS","AMOUNT","RATE_DAILY","PERIOD"]
[421300556,1777396232129,-1428.38747117,0.00011399,2]
[421300557,1777396232139,-743.50770149,0.00011399,2]
[421300558,1777396232149,-209.40437685,0.00011399,2]
[421300559,1777396232158,-151.0,0.00011399,2]
[421300560,1777396232168,-174.61919141,0.00011399,2]
[421300561,1777396232177,-2000.0,0.000114,2]
[421300562,1777396232188,-2351.0,0.00011421,2]
[421300563,1777396232197,-433.0,0.00011422,2]
[421300564,1777396232206,-1422.98,0.00011442,2]
[421300565,1777396232216,-495.52861948,0.00011443,2]
[421300566,1777396232225,-156.395,0.00011547,2]
[421300567,1777396232235,-3938.0,0.000116,2]
[421300568,1777396232245,-198.37901933,0.00011606,2]
[421300569,1777396232255,-495.52861948,0.00011672,2]
[421300570,1777396232264,-913.53775,0.0001188,2]
[421300571,1777396232274,-913.53775,0.0001188,2]
[421300572,1777396232283,-374.6097,0.00011886,2]
[421300573,1777396232293,-3476.2301599,0.00011886,2]
[421300574,1777396232302,-495.52861948,0.000119,2]
[421300575,1777396232311,-945.6805727,0.000119,2]
[421300576,1777396232631,-8042.65237169,0.000119,2]
[421300577,1777396232641,-198.37901933,0.000119,2]
[421300578,1777396232651,-367.0,0.000119,5]
[421300579,1777396232660,-1481.23780761,0.00011947,2]
[421300580,1777396232669,-15486.0,0.00011973,2]
[421300581,1777396232679,-500.0,0.00011973,2]
[421300582,1777396232688,-500.0,0.00011973,2]
[421300583,1777396232698,-1010.11438529,0.0001199,2]
[421300584,1777396232707,-1010.11438529,0.0001199,2]
[421300585,1777396232717,-1010.11438529,0.0001199,2]
[421300586,1777396232727,-300.0,0.00011999,2]
[421300587,1777396232737,-672.63471202,0.00011999,2]
[421300588,1777396232747,-300.0,0.00011999,2]
[421300589,1777396232756,-300.0,0.00011999,2]
[421300590,1777396232766,-1000.0,0.00011999,2]
[421300591,1777396232776,-1000.0,0.00011999,2]
[421300592,1777396232785,-1000.0,0.00011999,2]
[421300593,1777396232795,-535.03256859,0.00011999,2]
[421300594,1777396232804,-272244.34801295,0.00012,2]
[421300595,1777396232817,-9611.06214,0.00012,2]
[421300596,1777396232828,-5697.47453844,0.00012,2]
[421300597,1777396232843,-1903.98361101,0.00012,2]
[421300598,1777396232855,-471.16,0.00012,2]
[421300613,1777396239957,-182.09691547,0.00011999,2]
[421300614,1777396239967,-497.47280943,0.00011999,2]
[421300615,1777396239976,-164.12180186,0.00011999,2]
[421300616,1777396239986,-500.0,0.00011999,2]
[421300617,1777396239995,-500.0,0.00011999,2]
[421300618,1777396240004,-500.0,0.00011999,2]
[421300619,1777396240014,-312.2308612,0.00011999,2]
[421300620,1777396240023,-554.63086099,0.00011999,2]
[421300621,1777396240033,-239570.76216472,0.00012,2]
[421300622,1777396240065,-99366.99999998,0.00012,2]
[421300623,1777396240223,-712.09,0.00012,2]
[421300686,1777396242691,-11101.44398914,0.00012,2]
[421300687,1777396242746,-2709.02161183,0.00012,2]
[421300694,1777396246475,-81641.92197981,0.00012,2]
[421300695,1777396246527,-374.6097,0.00012,2]
[421300702,1777396268395,1388.221168,7.945e-05,2]
[421300703,1777396326544,194.0,7.945e-05,3]
[421300704,1777396326781,194.0,8.685e-05,3]
[421300705,1777396386959,175.0,8.685e-05,3]
[421300706,1777396447398,166.0,8.685e-05,3]
[421300707,1777396505561,158.0,8.685e-05,3]
[421300708,1777396507336,164.0,8.685e-05,3]
[421300709,1777396567125,150.0,8.685e-05,3]
[421300712,1777396626837,150.0,8.685e-05,3]
[421300713,1777396685225,150.0,8.685e-05,3]
[421300714,1777396745334,150.0,8.685e-05,3]
[421300715,1777396806618,152.0,8.685e-05,3]
[421300716,1777396812074,164.0,8.685e-05,3]
[421300717,1777396868615,152.0,8.685e-05,3]
[421300718,1777396928458,152.0,8.685e-05,3]
[421300719,1777396946329,200.0,8.8e-05,3]
[421300720,1777396948421,400.0,8.9e-05,3]
[421300721,1777396950507,600.0,9e-05,3]
[421300722,1777396956001,172.0,8.685e-05,3]
[421300723,1777396987221,152.0,8.685e-05,3]
[421300724,1777397048781,152.0,8.685e-05,3]
[421300725,1777397111830,152.0,8.685e-05,3]
[421300726,1777397171094,152.0,8.685e-05,3]
[421300727,1777397227473,152.0,8.685e-05,3]
[421300728,1777397227529,200.0,8.8e-05,3]
[421300729,1777397229406,400.0,8.9e-05,3]
[421300730,1777397231634,700.0,9e-05,3]
[421300731,1777397285445,152.0,8.685e-05,3]
[421300732,1777397350964,152.0,8.685e-05,3]
[421300733,1777397407440,152.0,8.685e-05,3]
[421300734,1777397431834,-280.0,8.219e-05,2]
[421300735,1777397431844,-64.68205672,8.383e-05,2]
[421300736,1777397431856,-1135.31794328,8.383e-05,2]
[421300737,1777397431865,-150.06744684,8.384e-05,2]
[421300738,1777397431875,-150.0,8.384e-05,2]
[421300739,1777397431885,-150.0,8.384e-05,2]
[421300740,1777397431895,-150.0,8.384e-05,2]
[421300741,1777397431904,-150.94681551,8.384e-05,2]
[421300742,1777397431914,-150.0,8.384e-05,2]
[421300743,1777397431924,-150.0,8.384e-05,2]
[421300744,1777397431934,-150.0,8.384e-05,2]
[421300745,1777397431944,-150.0,8.384e-05,2]
[421300746,1777397431953,-150.0,8.384e-05,2]
[421300747,1777397431963,-150.0,8.401e-05,2]
[421300748,1777397431972,-150.0,8.418e-05,2]
[421300749,1777397431982,-150.0,8.435e-05,2]
[421300750,1777397431991,-150.0,8.453e-05,2]
[421300751,1777397432001,-150.0,8.47e-05,2]
[421300752,1777397432010,-150.0,8.487e-05,2]
[421300753,1777397432019,-150.0,8.504e-05,2]
[421300754,1777397432029,-150.0,8.517e-05,2]
[421300755,1777397432038,-150.0,8.522e-05,2]
[421300756,1777397432048,-150.0,8.539e-05,2]
[421300757,1777397432058,-150.0,8.539e-05,2]
[421300758,1777397432067,-150.0,8.556e-05,2]
[421300759,1777397432077,-150.0,8.573e-05,2]
[421300760,1777397432086,-150.0,8.591e-05,2]
[421300761,1777397432097,-150.0,8.608e-05,2]
[421300762,1777397432107,-150.0,8.616e-05,2]
[421300763,1777397432116,-150.0,8.625e-05,2]
[421300764,1777397432126,-150.0,8.642e-05,2]
[421300765,1777397432135,-150.0,8.65e-05,2]
[421300766,1777397432145,-150.0,8.66e-05,2]
[421300767,1777397432155,-150.0,8.677e-05,2]
[421300768,1777397432165,-150.0,8.694e-05,2]
[421300769,1777397432174,-150.0,8.694e-05,2]
[421300770,1777397432184,-150.0,8.694e-05,2]
[421300771,1777397432194,-150.0,8.694e-05,2]
[421300772,1777397432203,-150.0,8.711e-05,2]
[421300773,1777397432212,-150.0,8.729e-05,2]
[421300774,1777397432230,-150.0,8.729e-05,2]
[421300777,1777397432242,-150.0,8.746e-05,2]
[421300779,1777397432252,-150.0,8.763e-05,2]
[421300781,1777397432262,-150.0,8.78e-05,2]
[421300783,1777397432271,-150.0,8.783e-05,2]
[421300785,1777397432281,-150.0,8.798e-05,2]
[421300787,1777397432291,-150.0,8.815e-05,2]
[421300789,1777397432300,-150.0,8.832e-05,2]
[421300791,1777397432310,-150.0,8.849e-05,2]
[421300793,1777397432319,-150.0,8.849e-05,2]
[421300795,1777397432329,-150.0,8.849e-05,2]
[421300797,1777397432339,-150.0,8.849e-05,2]
[421300799,1777397432349,-150.0,8.867e-05,2]
[421300801,1777397432359,-500.0,8.867e-05,2]
[421300803,1777397432369,-150.0,8.884e-05,2]
[421300805,1777397432379,-7.39754217,8.901e-05,2]
[421300808,1777397432392,-142.60245783,8.901e-05,2]
[421300810,1777397432402,-150.0,8.916e-05,2]
[421300812,1777397432412,-150.0,8.918e-05,2]
[421300814,1777397432422,-150.0,8.936e-05,2]
[421300817,1777397432432,-150.0,8.953e-05,2]
[421300820,1777397432441,-150.0,8.97e-05,2]
[421300823,1777397432452,-150.0,8.987e-05,2]
[421300826,1777397432462,-150.0,9.005e-05,2]
[421300829,1777397432472,-150.0,9.005e-05,2]
[421300831,1777397432482,-150.0,9.005e-05,2]
[421300833,1777397432492,-150.0,9.005e-05,2]
[421300835,1777397432502,-150.0,9.022e-05,2]
[421300837,1777397432511,-150.0,9.039e-05,2]
[421300839,1777397432521,-150.0,9.049e-05,2]
[421300841,1777397432531,-150.0,9.056e-05,2]
[421300843,1777397432540,-150.0,9.074e-05,2]
[421300845,1777397432551,-150.0,9.082e-05,2]
[421300847,1777397432560,-150.0,9.091e-05,2]
[421300849,1777397432570,-150.0,9.108e-05,2]
[421300851,1777397432580,-150.0,9.125e-05,2]
[421300853,1777397432590,-460.0,9.141e-05,2]
[421300855,1777397432599,-150.0,9.143e-05,2]
[421300857,1777397432608,-213.181707,9.155e-05,2]
[421300859,1777397432618,-150.0,9.16e-05,2]
[421300861,1777397432628,-150.0,9.16e-05,2]
[421300863,1777397432637,-150.0,9.177e-05,2]
[421300865,1777397432647,-150.0,9.182e-05,2]
[421300867,1777397432656,-150.0,9.194e-05,2]
[421300869,1777397432665,-150.0,9.212e-05,2]
[421300871,1777397432675,-1680.0,9.221e-05,2]
[421300873,1777397432685,-150.0,9.229e-05,2]
[421300875,1777397432694,-5342.2257792,9.242e-05,2]
[421300877,1777397432704,-150.0,9.246e-05,2]
[421300879,1777397432713,-173.43,9.247e-05,2]
[421300881,1777397432723,-150.0,9.263e-05,2]
[421300883,1777397432732,-150.0,9.281e-05,2]
[421300885,1777397432742,-377.41,9.295e-05,2]
[421300887,1777397432751,-150.0,9.298e-05,2]
[421300889,1777397432762,-150.0,9.315e-05,2]
[421300891,1777397432771,-150.0,9.315e-05,2]
[421300893,1777397432781,-150.0,9.315e-05,2]
[421300895,1777397432791,-150.0,9.315e-05,2]
[421300897,1777397432801,-150.0,9.315e-05,2]
[421300899,1777397432811,-150.0,9.315e-05,2]
[421300901,1777397432820,-150.0,9.315e-05,2]
[421300903,1777397432830,-6239.02971027,9.331e-05,2]
[421300904,1777397432839,-151.0,9.339e-05,2]
[421300907,1777397432852,-151.0,9.339e-05,2]
[421300909,1777397432863,-198.315,9.341e-05,2]
[421300910,1777397432872,-348.2309666,9.341e-05,2]
[421300911,1777397432882,-500.0,9.341e-05,2]
[421300912,1777397432891,-568.56160284,9.341e-05,2]
[421300913,1777397432901,-588.24160269,9.341e-05,2]
[421300914,1777397432911,-500.0,9.341e-05,2]
[421300915,1777397432920,-500.0,9.341e-05,2]
[421300916,1777397432930,-500.0,9.341e-05,2]
[421300917,1777397432939,-500.0,9.341e-05,2]
[421300918,1777397432949,-500.0,9.341e-05,2]
[421300919,1777397432959,-500.0,9.341e-05,2]
[421300920,1777397432969,-500.0,9.341e-05,2]
[421300921,1777397432978,-500.0,9.341e-05,2]
[421300922,1777397432988,-346.56882223,9.341e-05,2]
[421300923,1777397432997,-500.0,9.341e-05,2]
[421300924,1777397433007,-500.0,9.341e-05,2]
[421300925,1777397433017,-500.0,9.341e-05,2]
[421300926,1777397433026,-500.0,9.341e-05,2]
[421300927,1777397433036,-500.0,9.341e-05,2]
[421300928,1777397433046,-500.0,9.341e-05,2]
[421300929,1777397433055,-500.0,9.341e-05,2]
[421300930,1777397433065,-500.0,9.341e-05,2]
[421300931,1777397433074,-500.0,9.341e-05,2]
[421300932,1777397433084,-500.0,9.341e-05,2]
[421300933,1777397433094,-500.0,9.341e-05,2]
[421300934,1777397433103,-500.0,9.341e-05,2]
[421300935,1777397433114,-500.0,9.341e-05,2]
[421300936,1777397433124,-500.0,9.341e-05,2]
[421300937,1777397433134,-500.0,9.341e-05,2]
[421300938,1777397433143,-500.0,9.341e-05,2]
[421300939,1777397433153,-500.0,9.341e-05,2]
[421300940,1777397433163,-500.0,9.341e-05,2]
[421300941,1777397433172,-500.0,9.341e-05,2]
[421300942,1777397433182,-500.0,9.341e-05,2]
[421300943,1777397433191,-500.0,9.341e-05,2]
[421300944,1777397433201,-500.0,9.341e-05,2]
[421300945,1777397433210,-500.0,9.341e-05,2]
[421300946,1777397433220,-500.0,9.341e-05,2]
[421300947,1777397433231,-500.0,9.341e-05,2]
[421300948,1777397433240,-500.0,9.341e-05,2]
[421300949,1777397433250,-500.0,9.341e-05,2]
[421300950,1777397433260,-500.0,9.341e-05,2]
[421300951,1777397433270,-500.0,9.341e-05,2]
[421300952,1777397433279,-500.0,9.341e-05,2]
[421300953,1777397433290,-500.0,9.341e-05,2]
[421300954,1777397433299,-500.0,9.341e-05,2]
[421300955,1777397433309,-500.0,9.341e-05,2]
[421300956,1777397433319,-542.95589494,9.341e-05,2]
[421300957,1777397433328,-500.0,9.341e-05,2]
[421300958,1777397433338,-500.0,9.341e-05,2]
[421300959,1777397433348,-500.0,9.341e-05,2]
[421300960,1777397433358,-500.0,9.341e-05,2]
[421300961,1777397433368,-1172.521,9.341e-05,2]
[421300962,1777397433378,-226.6,9.341e-05,2]
[421300963,1777397433388,-250.0,9.341e-05,2]
[421300964,1777397433397,-445.576,9.342e-05,2]
[421300965,1777397433407,-120323.47838904,9.342e-05,2]
[421300966,1777397433421,-14062.94329998,9.342e-05,2]
[421300967,1777397433432,-10560.76463815,9.342e-05,2]
[421300968,1777397433444,-4751.41049392,9.342e-05,2]
[421300969,1777397433456,-659.1457183,9.342e-05,2]
[421300970,1777397433467,-952.0,9.342e-05,2]
[421300971,1777397433479,-615.73022702,9.342e-05,2]
[421300972,1777397433490,-388.019697,9.342e-05,2]
[421300973,1777397433502,-25549.30136559,9.342e-05,2]
[421300974,1777397433514,-7565.24911721,9.342e-05,2]
[421300975,1777397433529,-359.2434,9.342e-05,2]
[421300976,1777397433540,-2088.41628585,9.342e-05,2]
[421300977,1777397433552,-4600.74438523,9.342e-05,2]
[421300978,1777397433563,-1763.20802313,9.342e-05,2]
[421300979,1777397433574,-5751.132,9.342e-05,2]
[421300980,1777397433585,-4567.23508771,9.342e-05,2]
[421300981,1777397433596,-627.92076636,9.342e-05,2]
[421300982,1777397433607,-462.97031351,9.342e-05,2]
[421300983,1777397433619,-507.104,9.342e-05,2]
[421300984,1777397433630,-2360.62950549,9.342e-05,2]
[421300985,1777397433641,-540.58542602,9.342e-05,2]
[421300986,1777397433652,-699.59791438,9.342e-05,2]
[421300987,1777397433663,-299.23478,9.342e-05,2]
[421300988,1777397433675,-13115.57825408,9.342e-05,2]
[421301001,1777397439945,-2315.0,9.342e-05,2]
[421301004,1777397439956,-12167.23415121,9.342e-05,2]
[421301006,1777397439968,-5194.36297898,9.342e-05,2]
[421301008,1777397439979,-8337.507,9.342e-05,2]
[421301010,1777397440058,-259.27944109,9.342e-05,2]
[421301011,1777397440114,-9599.14585426,9.342e-05,2]
[421301012,1777397440126,-500.0,9.342e-05,2]
[421301013,1777397440279,-494835.77678389,9.342e-05,2]
[421301014,1777397440336,-2947.50193043,9.342e-05,2]
[421301015,1777397440447,-276073.78087217,9.342e-05,2]
[421301016,1777397440456,-255.0,9.601e-05,2]
[421301017,1777397440466,-226.6,9.615e-05,2]
[421301018,1777397440476,-226.6,9.889e-05,2]
[421301019,1777397440485,-732.50069621,0.0001,2]
[421301020,1777397440495,-1902.42779381,0.0001,2]
[421301021,1777397440504,-501.17811211,0.00010085,2]
[421301022,1777397440514,-501.17811211,0.00010085,2]
[421301023,1777397440523,-2351.0,0.00010143,2]
[421301024,1777397440532,-226.6,0.00010163,2]
[421301038,1777397440811,-226.63,0.00010437,2]
[421301039,1777397440821,-433.0,0.00010562,2]
[421301040,1777397440830,-694.019,0.00010709,2]
[421301041,1777397440839,-6035.0,0.00010709,2]
[421301042,1777397440848,-1049.0,0.00010709,2]
[421301043,1777397440857,-250.0,0.0001086,2]
[421301044,1777397440867,-248.73720865,0.000109,2]
[421301045,1777397440876,-248.73720859,0.000109,2]
[421301046,1777397440885,-248.73720859,0.000109,2]
[421301047,1777397440895,-248.73720859,0.000109,2]
[421301048,1777397440904,-248.73720859,0.000109,2]
[421301049,1777397440913,-152.0,0.00010904,3]
[421301050,1777397440922,-282.57344588,0.00010959,2]
[421301051,1777397440932,-173.81819923,0.00011089,2]
[421301052,1777397440941,-150.0,0.00011096,2]
[421301053,1777397440951,-9362.2376698,0.00011099,2]
[421301054,1777397440961,-9362.2376698,0.00011099,2]
[421301055,1777397440970,-9362.2376698,0.00011099,2]
[421301056,1777397440980,-8832.91291199,0.00011099,2]
[421301057,1777397440992,-529.32475781,0.00011099,2]
[421301058,1777397441003,-9362.2376698,0.00011099,2]
[421301059,1777397441013,-9362.2376698,0.00011099,2]
[421301060,1777397441023,-9362.2376698,0.00011099,2]
[421301061,1777397441033,-8993.55123812,0.00011099,2]
[421301062,1777397441043,-8993.55123808,0.00011099,2]
[421301063,1777397441052,-8993.55123808,0.00011099,2]
[421301064,1777397441061,-3797.83666526,0.00011099,2]
[421301065,1777397441074,-488.52303721,0.00011099,2]
[421301078,1777397443027,-4584.377,0.00011099,2]
[421301079,1777397443085,-122.81453561,0.00011099,2]
[421301080,1777397443094,-8993.55123808,0.00011099,2]
[421301081,1777397443104,-8993.55123808,0.00011099,2]
[421301082,1777397443113,-3571.23440104,0.00011099,2]
[421301127,1777397446199,-713.165178,0.00010709,2]
[421301128,1777397446311,-2818.834822,0.00010709,2]
[421301129,1777397446320,-5422.31683704,0.00011099,2]
[421301130,1777397446334,-248.73720859,0.00011141,2]
[421301131,1777397446344,-3292.0,0.00011157,2]
[421301132,1777397446353,-500.0,0.00011178,2]
[421301133,1777397446363,-151.0,0.00011309,2]
[421301134,1777397446372,-151.0,0.00011309,2]
[421301135,1777397446382,-151.0,0.00011309,2]
[421301136,1777397446391,-200.0,0.00011309,2]
[421301137,1777397446401,-200.0,0.00011309,2]
[421301138,1777397446410,-200.0,0.00011309,2]
[421301139,1777397446420,-200.0,0.00011309,2]
[421301140,1777397446430,-9362.2376698,0.00011309,2]
[421301141,1777397446440,-8993.55123808,0.00011309,2]
[421301142,1777397446450,-2251.65069118,0.00011399,2]
[421301143,1777397446459,-578.20924308,0.00011399,2]
[421301144,1777397446468,-200.0,0.00011399,2]
[421301145,1777397446477,-187.78006525,0.00011399,2]
[421301146,1777397446487,-743.50770149,0.00011399,2]
[421301147,1777397446496,-9552.16786547,0.00011399,2]
[421301148,1777397446506,-1428.38747117,0.00011399,2]
[421301149,1777397446515,-646.65982734,0.00011399,2]
[421301150,1777397446525,-187.78006525,0.00011399,2]
[421301151,1777397446534,-621.78829552,0.00011399,2]
[421301152,1777397446543,-279.9045709,0.00011399,2]
[421301153,1777397446553,-174.61919141,0.00011399,2]
[421301154,1777397446562,-187.78006526,0.00011399,2]
[421301155,1777397446571,-6341.34143893,0.000114,2]
[421301156,1777397446580,-5000.0,0.000114,2]
[421301157,1777397446590,-5000.0,0.000114,2]
[421301158,1777397446599,-5000.0,0.000114,2]
[421301159,1777397446608,-5000.0,0.000114,2]
[421301160,1777397446618,-151.0,0.000114,2]
[421301161,1777397446627,-900.0,0.000114,4]
[421301162,1777397446636,-151.0,0.00011454,2]
[421301163,1777397446646,-151.0,0.00011454,2]
[421301164,1777397446655,-290.685411,0.00011454,2]
[421301165,1777397446664,-290.685411,0.00011454,2]
[421301166,1777397446674,-290.685411,0.00011454,2]
[421301167,1777397446683,-290.685411,0.00011454,2]
[421301168,1777397446693,-6952.02938031,0.00011454,2]
[421301169,1777397446702,-1100.0,0.000115,4]
[421301170,1777397446711,-500.0,0.00011513,2]
[421301171,1777397446720,-248.73720859,0.0001152,2]
[421301172,1777397446730,-200.0,0.000116,4]
[421301173,1777397446739,-9362.2376698,0.00011605,2]
[421301174,1777397446748,-8993.55123808,0.00011605,2]
[421301175,1777397446758,-736.0,0.00011618,2]
[421301176,1777397446767,-200.0,0.000117,4]
[421301177,1777397446776,-910.81799136,0.0001176,2]
[421301178,1777397446789,-200.0,0.000118,4]
[421301179,1777397446798,-152.0,0.00011833,7]
[421301180,1777397446807,-152.0,0.00011833,7]
[421301181,1777397446817,-152.0,0.00011845,7]
[421301182,1777397446826,-152.0,0.00011845,7]
[421301183,1777397446835,-500.0,0.00011858,2]
[421301184,1777397446845,-151.0,0.00011877,2]
[421301186,1777397446854,-14236.24700799,0.0001188,2]
[421301190,1777397712215,-150.0,0.00042721,30]
[421301193,1777398631930,-379.0,8.219e-05,2]
[421301194,1777398631940,-280.0,8.219e-05,2]
[421301195,1777398631949,-300.0,9.039e-05,2]
[421301196,1777398631958,-1200.0,9.039e-05,2]
[421301197,1777398631968,-194.00072509,9.04e-05,2]
[421301198,1777398631977,-300.0,9.04e-05,2]
[421301199,1777398631986,-462.9703,9.132e-05,2]
[421301200,1777398631996,-194.00072509,9.14e-05,2]
[421301201,1777398632005,-1006.7926962,9.142e-05,2]
[421301202,1777398632016,-1053.71656762,9.142e-05,2]
[421301203,1777398632086,-506.276,9.142e-05,2]
[421301204,1777398632098,-4013.56873618,9.142e-05,2]
[421301205,1777398632108,-820.76862899,9.142e-05,2]
[421301206,1777398632119,-1679.23137101,9.142e-05,2]
[421301207,1777398632128,-150.0,9.231e-05,2]
[421301208,1777398632138,-1984.51009439,9.232e-05,2]
[421301209,1777398632152,-1091.06176575,9.232e-05,2]
[421301210,1777398632164,-7449.0,9.232e-05,2]
[421301211,1777398632193,-33387.45536314,9.232e-05,2]
[421301212,1777398632203,-2120.673,9.24e-05,2]
[421301213,1777398632212,-157.135,9.24e-05,2]
[421301214,1777398632223,-194.00072509,9.24e-05,2]
[421301215,1777398632232,-542.71015587,9.241e-05,2]
[421301216,1777398632242,-500.0,9.241e-05,2]
[421301217,1777398632251,-500.0,9.241e-05,2]
[421301218,1777398632260,-500.0,9.241e-05,2]
[421301219,1777398632270,-500.0,9.241e-05,2]
[421301220,1777398632279,-500.0,9.241e-05,2]
[421301221,1777398632288,-500.0,9.241e-05,2]
[421301222,1777398632299,-500.0,9.241e-05,2]
[421301223,1777398632309,-500.0,9.241e-05,2]
[421301224,1777398632318,-500.0,9.241e-05,2]
[421301225,1777398632327,-500.0,9.241e-05,2]
[421301226,1777398632337,-500.0,9.241e-05,2]
[421301227,1777398632347,-500.0,9.241e-05,2]
[421301228,1777398632356,-500.0,9.241e-05,2]
[421301229,1777398632365,-500.0,9.241e-05,2]
[421301230,1777398632375,-500.0,9.241e-05,2]
[421301231,1777398632384,-500.0,9.241e-05,2]
[421301232,1777398632393,-500.0,9.241e-05,2]
[421301233,1777398632402,-500.0,9.241e-05,2]
[421301234,1777398632412,-500.0,9.241e-05,2]
[421301235,1777398632421,-500.0,9.241e-05,2]
[421301236,1777398632430,-500.0,9.241e-05,2]
[421301237,1777398632439,-500.0,9.241e-05,2]
[421301238,1777398632452,-500.0,9.241e-05,2]
[421301240,1777398632461,-500.0,9.241e-05,2]
[421301241,1777398632470,-500.0,9.241e-05,2]
[421301243,1777398632480,-500.0,9.241e-05,2]
[421301244,1777398632489,-371.44397303,9.241e-05,2]
[421301245,1777398632499,-500.0,9.241e-05,2]
[421301246,1777398632508,-500.0,9.241e-05,2]
[421301247,1777398632517,-500.0,9.241e-05,2]
[421301248,1777398632526,-500.0,9.241e-05,2]
[421301249,1777398632535,-500.0,9.241e-05,2]
[421301250,1777398632544,-500.0,9.241e-05,2]
[421301251,1777398632554,-500.0,9.241e-05,2]
[421301252,1777398632563,-500.0,9.241e-05,2]
[421301253,1777398632572,-500.0,9.241e-05,2]
[421301254,1777398632582,-500.0,9.241e-05,2]
[421301255,1777398632591,-639.27801348,9.241e-05,2]
[421301256,1777398632600,-500.0,9.241e-05,2]
[421301257,1777398632610,-500.0,9.241e-05,2]
[421301258,1777398632619,-500.0,9.241e-05,2]
[421301259,1777398632629,-500.0,9.241e-05,2]
[421301260,1777398632638,-500.0,9.241e-05,2]
[421301261,1777398632648,-500.0,9.241e-05,2]
[421301262,1777398632658,-500.0,9.241e-05,2]
[421301263,1777398632667,-500.0,9.241e-05,2]
[421301264,1777398632676,-500.0,9.241e-05,2]
[421301265,1777398632685,-500.0,9.241e-05,2]
[421301266,1777398632695,-500.0,9.241e-05,2]
[421301267,1777398632705,-500.0,9.241e-05,2]
[421301268,1777398632714,-500.0,9.241e-05,2]
[421301269,1777398632724,-500.0,9.241e-05,2]
[421301270,1777398632733,-500.0,9.241e-05,2]
[421301271,1777398632744,-500.0,9.241e-05,2]
[421301272,1777398632753,-500.0,9.241e-05,2]
[421301273,1777398632765,-500.0,9.241e-05,2]
[421301274,1777398632775,-500.0,9.241e-05,2]
[421301275,1777398632784,-402.00733901,9.241e-05,2]
[421301276,1777398632793,-500.0,9.241e-05,2]
[421301277,1777398632803,-500.0,9.241e-05,2]
[421301278,1777398632812,-500.0,9.241e-05,2]
[421301279,1777398632822,-749.15,9.241e-05,2]
[421301280,1777398632831,-270.0,9.341e-05,2]
[421301281,1777398632840,-749.15,9.515e-05,2]
[421301282,1777398632850,-749.15,9.789e-05,2]
[421301283,1777398632859,-420.0,9.943e-05,2]
[421301284,1777398632868,-1680.0,9.943e-05,2]
[421301285,1777398632877,-749.15,0.00010063,2]
[421301286,1777398632887,-255.0,0.00010154,2]
[421301287,1777398632896,-749.15,0.00010337,2]
[421301288,1777398632905,-500.0,0.00010575,2]
[421301289,1777398632915,-749.15,0.00010611,2]
[421301290,1777398632924,-299.08299217,0.00010831,2]
[421301291,1777398632934,-749.15,0.00010885,2]
[421301292,1777398632944,-587.0,0.00010937,2]
[421301293,1777398632953,-2351.0,0.00010937,2]
[421301294,1777398632963,-500.0,0.00010958,2]
[421301295,1777398632972,-623.0,0.00010963,2]
[421301296,1777398632981,-238.403,0.00010963,2]
[421301297,1777398632991,-416.0,0.00010963,2]
[421301298,1777398633000,-6035.0,0.00010963,2]
[421301299,1777398633009,-1935.34230919,0.00011063,2]
[421301300,1777398633018,-166.07037803,0.00011098,2]
[421301301,1777398633028,-500.0,0.00011098,2]
[421301302,1777398633037,-500.0,0.00011098,2]
[421301303,1777398633046,-179.51835459,0.00011098,2]
[421301304,1777398633055,-548.33686607,0.00011098,2]
[421301305,1777398633065,-500.0,0.00011098,2]
[421301306,1777398633075,-500.0,0.00011098,2]
[421301307,1777398633085,-321.62015261,0.00011098,2]
[421301308,1777398633094,-265.07731217,0.00011098,2]
[421301309,1777398633103,-500.0,0.00011098,2]
[421301310,1777398633112,-170.23207075,0.00011098,2]